[Event "Polgar Challenge 2021"]
[Site "Online"]
[Date "2021.04.04"]
[Round "9.10"]
[White "Abdumalik, Zhansaya"]
[Black "Khademalsharieh, Sarasadat"]
[Result "1-0"]
[ECO "C78"]
[WhiteElo "2472"]
[BlackElo "2494"]
[Annotator "ChessBase"]
[PlyCount "111"]
[EventDate "2021.04.08"]
[EventType "tourn"]
[EventCountry "NET"]
[SourceTitle "playchess.com"]
[Source "ChessBase"]
[SourceQuality "1"]
[TimeControl "600+5"]

1. e4 {[%emt 0:00:00]} e5 {[%emt 0:00:00]} 2. Nf3 {[%emt 0:00:00]} Nc6 {[%emt 0:00:00]} 3. Bb5 {[%emt 0:00:00]} a6 {[%emt 0:00:00]} 4. Ba4 {[%emt 0:00:00]} Nf6 {[%emt 0:00:00]} 5. O-O {[%emt 0:00:00]} b5 {[%emt 0:00:00]} 6. Bb3 {[%emt 0:00:00]} Bc5 {[%emt 0:00:00]} 7. d3 {[%emt 0:00:15]} O-O {[%emt 0:00:15]} 8. c3 {[%emt 0:00:08]} d6 {[%emt 0:00:11]} 9. h3 {[%emt 0:00:05]} h6 {[%emt 0:00:02]} 10. Re1 {[%emt 0:00:08]} Be6 {[%emt 0:00:27]} 11. Bc2 {[%emt 0:00:03]} Bb6 {[%emt 0:00:12]} 12. Nbd2 {[%emt 0:00:03]} Ne7 {[%emt 0:00:10]} 13. Nf1 {[%emt 0:00:05]} Ng6 {[%emt 0:00:04]} 14. Ng3 {[%emt 0:00:05]} d5 {[%emt 0:00:19]} 15. exd5 {[%emt 0:00:33]} Nxd5 {[%emt 0:00:07]} 16. d4 {[%emt 0:00:28]} c5 {[%emt 0:01:04]} 17. Nxe5 {[%emt 0:00:13]} Nxe5 {[%emt 0:00:19]} 18. Rxe5 {[%emt 0:00:01]} cxd4 {[%emt 0:00:05]} 19. Qd3 {[%emt 0:00:20]} Nf6 {[%emt 0:00:27]} 20. Nh5 {[%emt 0:01:08]} Re8 {[%emt 0:01:31]} 21. Nxf6+ {[%emt 0:02:37]} Qxf6 {[%emt 0:00:03]} 22. Qh7+ {[%emt 0:00:01]} Kf8 {[%emt 0:00:01]} 23. Re2 {[%emt 0:00:16]} Rad8 {[%emt 0:01:19]} 24. b3 {[%emt 0:00:16]} b4 {[%emt 0:01:24]} 25. cxd4 {[%emt 0:00:05]} Bxd4 {[%emt 0:00:04]} 26. Rb1 {[%emt 0:00:03]} a5 {[%emt 0:00:45]} 27. Bd2 {[%emt 0:00:16]} Ke7 {[%emt 0:00:41]} 28. Rbe1 {[%emt 0:00:25]} Rh8 {[%emt 0:00:11]} 29. Qe4 {[%emt 0:00:13]} Kf8 {[%emt 0:00:03]} 30. Be3 {[%emt 0:00:50]} Bc3 {[%emt 0:00:35]} 31. Bc5+ {[%emt 0:00:09]} Kg8 {[%emt 0:00:02]} 32. Rf1 {[%emt 0:00:34]} g6 {[%emt 0:00:06]} 33. Qb7 {[%emt 0:00:19]} Rd7 {[%emt 0:00:21]} 34. Qb6 {[%emt 0:00:49]} Rd5 {[%emt 0:00:26]} 35. Be4 {[%emt 0:00:20]} Rg5 {[%emt 0:00:27]} 36. Kh1 {[%emt 0:00:38]} Kh7 {[%emt 0:00:09]} 37. f4 {[%emt 0:00:10]} Rh5 {[%emt 0:00:09]} 38. Kh2 {[%emt 0:00:28]} Rc8 {[%emt 0:00:06]} 39. Be3 {[%emt 0:00:13]} a4 {[%emt 0:00:06]} 40. bxa4 {[%emt 0:00:13]} Rd8 {[%emt 0:00:32]} 41. Ref2 {[%emt 0:00:14]} Bd4 {[%emt 0:00:16]} 42. Bxd4 {[%emt 0:00:05]} Qxd4 {[%emt 0:00:04]} 43. Qb7 {[%emt 0:00:14]} Rd7 {[%emt 0:00:08]} 44. Qa8 {[%emt 0:00:06]} Ra7 {[%emt 0:00:12]} 45. Qc6 {[%emt 0:00:05]} Rc5 {[%emt 0:00:04]} 46. Qb6 {[%emt 0:00:05]} Rxa4 {[%emt 0:00:05]} 47. Bxg6+ {[%emt 0:00:05]} Kg7 {[%emt 0:00:06]} 48. f5 {[%emt 0:00:05]} Bxa2 {[%emt 0:00:04]} 49. Bh5 {[%emt 0:00:08]} Qe5+ {[%emt 0:00:02]} 50. Kh1 {[%emt 0:00:03]} Bd5 {[%emt 0:00:05]} 51. f6+ {[%emt 0:00:06]} Kh7 {[%emt 0:00:02]} 52. Bd1 {[%emt 0:00:14]} Ra3 {[%emt 0:00:02]} 53. Bg4 {[%emt 0:00:09]} Be4 {[%emt 0:00:22]} 54. Qxb4 {[%emt 0:00:06]} Rcc3 {[%emt 0:00:02]} 55. Kg1 {[%emt 0:00:04]} Bg6 {[%emt 0:00:11]} 56. Qf8 {[%emt 0:00:02]} 1-0

[Event "Polgar Challenge 2021"]
[Site "Online"]
[Date "2021.04.04"]
[Round "10.1"]
[White "Zhu, Jiner"]
[Black "Khademalsharieh, Sarasadat"]
[Result "1-0"]
[ECO "C29"]
[WhiteElo "2459"]
[BlackElo "2494"]
[Annotator "ChessBase"]
[PlyCount "45"]
[EventDate "2021.04.08"]
[EventType "tourn"]
[EventCountry "NET"]
[SourceTitle "playchess.com"]
[Source "ChessBase"]
[SourceQuality "1"]
[TimeControl "600+5"]

1. e4 {[%emt 0:00:00]} e5 {[%emt 0:00:00]} 2. Nc3 {[%emt 0:00:00]} Nf6 {[%emt 0:00:00]} 3. f4 {[%emt 0:00:00]} d5 {[%emt 0:00:04]} 4. fxe5 {[%emt 0:00:00]} Nxe4 {[%emt 0:00:01]} 5. Qf3 {[%emt 0:00:01]} Nxc3 {[%emt 0:00:15]} 6. bxc3 {[%emt 0:00:01]} Be7 {[%emt 0:00:03]} 7. d4 {[%emt 0:00:14]} O-O {[%emt 0:00:20]} 8. Bd3 {[%emt 0:00:01]} c5 {[%emt 0:00:11]} 9. Ne2 {[%emt 0:00:21]} c4 {[%emt 0:00:18]} 10. Bf5 {[%emt 0:00:01]} Bxf5 {[%emt 0:00:28]} 11. Qxf5 {[%emt 0:00:02]} f6 {[%emt 0:00:01]} 12. O-O {[%emt 0:01:15]} fxe5 {[%emt 0:00:27]} 13. Qe6+ {[%emt 0:00:03]} Kh8 {[%emt 0:00:02]} 14. Rxf8+ {[%emt 0:00:20]} Bxf8 {[%emt 0:00:04]} 15. dxe5 {[%emt 0:02:11]} Bc5+ {[%emt 0:00:40]} 16. Kh1 {[%emt 0:00:16]} Nc6 {[%emt 0:00:06]} 17. Bf4 {[%emt 0:00:12]} Qg8 {[%emt 0:02:39]} 18. Qd7 {[%emt 0:00:35]} Re8 {[%emt 0:00:16]} 19. Ng3 {[%emt 0:02:53]} Nxe5 {[%emt 0:00:50]} 20. Bxe5 {[%emt 0:00:04]} Rxe5 {[%emt 0:00:01]} 21. Qc7 {[%emt 0:00:09]} Re3 {[%emt 0:00:42]} 22. Qxc5 {[%emt 0:00:05]} Rxc3 {[%emt 0:00:25]} 23. Rf1 {[%emt 0:00:09]} 1-0

[Event "Polgar Challenge 2021"]
[Site "Online"]
[Date "2021.04.04"]
[Round "10.3"]
[White "Murzin, Volodar"]
[Black "Mendonca, Leon Luke"]
[Result "1-0"]
[ECO "B53"]
[WhiteElo "2478"]
[BlackElo "2549"]
[Annotator "ChessBase"]
[PlyCount "99"]
[EventDate "2021.04.08"]
[EventType "tourn"]
[EventCountry "NET"]
[SourceTitle "playchess.com"]
[Source "ChessBase"]
[SourceQuality "1"]
[TimeControl "600+5"]

1. e4 {[%emt 0:00:00]} c5 {[%emt 0:00:00]} 2. Nf3 {[%emt 0:00:00]} d6 {[%emt 0:00:00]} 3. d4 {[%emt 0:00:00]} cxd4 {[%emt 0:00:01]} 4. Qxd4 {[%emt 0:00:01]} Nf6 {[%emt 0:00:12]} 5. Be2 {[%emt 0:00:16]} Nc6 {[%emt 0:00:06]} 6. Qe3 {[%emt 0:00:03]} g6 {[%emt 0:00:12]} 7. O-O {[%emt 0:00:02]} Bg7 {[%emt 0:00:01]} 8. Rd1 {[%emt 0:00:03]} O-O {[%emt 0:00:30]} 9. Nc3 {[%emt 0:00:06]} Qb6 {[%emt 0:01:14]} 10. Qxb6 {[%emt 0:02:46]} axb6 {[%emt 0:00:00]} 11. Be3 {[%emt 0:00:12]} Nb4 {[%emt 0:02:03]} 12. Rdc1 {[%emt 0:00:28]} Nd7 {[%emt 0:01:24]} 13. Bd4 {[%emt 0:00:31]} Nc5 {[%emt 0:00:16]} 14. a3 {[%emt 0:00:17]} Nc6 {[%emt 0:00:17]} 15. Bxg7 {[%emt 0:00:03]} Kxg7 {[%emt 0:00:00]} 16. Rd1 {[%emt 0:02:30]} Na4 {[%emt 0:01:00]} 17. Nxa4 {[%emt 0:00:10]} Rxa4 {[%emt 0:00:00]} 18. Nd2 {[%emt 0:00:13]} Be6 {[%emt 0:00:07]} 19. c3 {[%emt 0:00:07]} Rc8 {[%emt 0:00:18]} 20. Re1 {[%emt 0:00:10]} g5 {[%emt 0:00:26]} 21. f3 {[%emt 0:00:37]} Ne5 {[%emt 0:00:13]} 22. Kf2 {[%emt 0:00:03]} Ra5 {[%emt 0:00:31]} 23. Rad1 {[%emt 0:00:14]} Bc4 {[%emt 0:00:22]} 24. Nxc4 {[%emt 0:00:34]} Nxc4 {[%emt 0:00:01]} 25. Bxc4 {[%emt 0:00:00]} Rxc4 {[%emt 0:00:01]} 26. Re2 {[%emt 0:00:02]} Kf6 {[%emt 0:00:15]} 27. Ke3 {[%emt 0:00:03]} Rac5 {[%emt 0:00:20]} 28. Red2 {[%emt 0:00:37]} Rc8 {[%emt 0:00:13]} 29. Rd4 {[%emt 0:00:10]} h5 {[%emt 0:00:19]} 30. Rd5 {[%emt 0:00:36]} R8c5 {[%emt 0:00:12]} 31. R1d4 {[%emt 0:00:15]} Rxd5 {[%emt 0:01:19]} 32. Rxd5 {[%emt 0:00:06]} Rc5 {[%emt 0:00:03]} 33. Rxc5 {[%emt 0:01:05]} bxc5 {[%emt 0:00:15]} 34. a4 {[%emt 0:00:11]} Ke5 {[%emt 0:00:05]} 35. b4 {[%emt 0:00:09]} cxb4 {[%emt 0:00:24]} 36. cxb4 {[%emt 0:00:00]} d5 {[%emt 0:00:01]} 37. a5 {[%emt 0:00:03]} dxe4 {[%emt 0:00:09]} 38. fxe4 {[%emt 0:00:01]} Kd6 {[%emt 0:00:05]} 39. Kd4 {[%emt 0:00:02]} Kc6 {[%emt 0:00:09]} 40. Kc4 {[%emt 0:00:01]} f6 {[%emt 0:00:10]} 41. b5+ {[%emt 0:00:02]} Kd7 {[%emt 0:00:02]} 42. Kc5 {[%emt 0:00:07]} e6 {[%emt 0:00:07]} 43. a6 {[%emt 0:00:18]} bxa6 {[%emt 0:00:02]} 44. bxa6 {[%emt 0:00:00]} Kc7 {[%emt 0:00:01]} 45. a7 {[%emt 0:00:01]} Kb7 {[%emt 0:00:01]} 46. Kd6 {[%emt 0:00:01]} f5 {[%emt 0:00:01]} 47. exf5 {[%emt 0:00:01]} exf5 {[%emt 0:00:00]} 48. Ke5 {[%emt 0:00:01]} f4 {[%emt 0:00:01]} 49. Kf5 {[%emt 0:00:05]} h4 {[%emt 0:00:14]} 50. h3 {[%emt 0:00:01]} 1-0

[Event "Polgar Challenge 2021"]
[Site "Online"]
[Date "2021.04.04"]
[Round "10.4"]
[White "Mammadzada, Gunay"]
[Black "Keymer, Vincent"]
[Result "0-1"]
[ECO "B90"]
[WhiteElo "2443"]
[BlackElo "2591"]
[Annotator "ChessBase"]
[PlyCount "72"]
[EventDate "2021.04.08"]
[EventType "tourn"]
[EventCountry "NET"]
[SourceTitle "playchess.com"]
[Source "ChessBase"]
[SourceQuality "1"]
[TimeControl "600+5"]

1. e4 {[%emt 0:00:00]} c5 {[%emt 0:00:00]} 2. Nf3 {[%emt 0:00:00]} d6 {[%emt 0:00:00]} 3. d4 {[%emt 0:00:00]} cxd4 {[%emt 0:00:00]} 4. Nxd4 {[%emt 0:00:00]} Nf6 {[%emt 0:00:00]} 5. Nc3 {[%emt 0:00:00]} a6 {[%emt 0:00:00]} 6. Be3 {[%emt 0:00:01]} e5 {[%emt 0:00:01]} 7. Nb3 {[%emt 0:00:01]} Be7 {[%emt 0:00:01]} 8. Qd2 {[%emt 0:00:02]} Ng4 {[%emt 0:00:02]} 9. g3 {[%emt 0:00:01]} Nd7 {[%emt 0:00:20]} 10. Bh3 {[%emt 0:00:57]} Ndf6 {[%emt 0:00:36]} 11. Bxg4 {[%emt 0:00:04]} Bxg4 {[%emt 0:00:05]} 12. Qd3 {[%emt 0:00:16]} O-O {[%emt 0:00:28]} 13. h3 {[%emt 0:00:42]} Be6 {[%emt 0:00:08]} 14. O-O-O {[%emt 0:00:10]} b5 {[%emt 0:00:29]} 15. f4 {[%emt 0:00:08]} Bc4 {[%emt 0:01:18]} 16. Qd2 {[%emt 0:00:04]} a5 {[%emt 0:01:02]} 17. Qg2 {[%emt 0:00:21]} Qc7 {[%emt 0:00:18]} 18. Kb1 {[%emt 0:01:00]} b4 {[%emt 0:00:28]} 19. Nd5 {[%emt 0:00:41]} Nxd5 {[%emt 0:00:50]} 20. exd5 {[%emt 0:00:04]} a4 {[%emt 0:00:00]} 21. Nc1 {[%emt 0:01:19]} Rfc8 {[%emt 0:01:12]} 22. Rh2 {[%emt 0:02:19]} Bf6 {[%emt 0:01:29]} 23. fxe5 {[%emt 0:00:37]} Bxe5 {[%emt 0:00:03]} 24. Bd4 {[%emt 0:00:03]} Bxd4 {[%emt 0:00:07]} 25. Rxd4 {[%emt 0:00:02]} a3 {[%emt 0:00:03]} 26. b3 {[%emt 0:00:06]} Be2 {[%emt 0:00:06]} 27. c4 {[%emt 0:00:16]} Bh5 {[%emt 0:00:58]} 28. Qd2 {[%emt 0:00:08]} Qa7 {[%emt 0:00:35]} 29. g4 {[%emt 0:00:29]} Bg6+ {[%emt 0:00:03]} 30. Ka1 {[%emt 0:00:01]} Re8 {[%emt 0:00:01]} 31. Rh1 {[%emt 0:00:03]} Re5 {[%emt 0:00:32]} 32. Rd1 {[%emt 0:01:37]} Rae8 {[%emt 0:00:32]} 33. Qxb4 {[%emt 0:00:15]} Bc2 {[%emt 0:00:03]} 34. Qxd6 {[%emt 0:00:16]} Bxd1 {[%emt 0:00:11]} 35. Rxd1 {[%emt 0:00:00]} Re1 {[%emt 0:00:07]} 36. Rxe1 {[%emt 0:00:13]} Qd4+ {[%emt 0:00:02]} 0-1

[Event "Polgar Challenge 2021"]
[Site "Online"]
[Date "2021.04.04"]
[Round "10.5"]
[White "Nihal Sarin"]
[Black "Gukesh D"]
[Result "1/2-1/2"]
[ECO "C70"]
[WhiteElo "2620"]
[BlackElo "2578"]
[Annotator "RC"]
[PlyCount "90"]
[EventDate "2021.04.08"]
[EventType "tourn"]
[EventCountry "NET"]
[SourceTitle "playchess.com"]
[Source "ChessBase"]
[SourceQuality "1"]
[TimeControl "600+5"]

1. e4 {[%emt 0:00:00]} e5 {[%emt 0:00:00]} 2. Nf3 {[%emt 0:00:00]} Nc6 {[%emt 0:00:00]} 3. Bb5 {[%emt 0:00:02]} a6 {[%emt 0:00:08]} 4. Ba4 {[%emt 0:00:03]} Bc5 {[%emt 0:00:05]} 5. c3 {[%emt 0:00:56]} Nge7 {[%emt 0:00:13]} 6. d4 {[%emt 0:00:14]} exd4 {[%emt 0:00:19]} 7. cxd4 {[%emt 0:00:00]} Bb4+ {[%emt 0:00:01]} 8. Bd2 {[%emt 0:00:05]} Bxd2+ {[%emt 0:00:08]} 9. Qxd2 {[%emt 0:00:34]} d5 {[%emt 0:00:07]} 10. exd5 {[%emt 0:00:16]} Nxd5 {[%emt 0:00:08]} 11. Bxc6+ {[%emt 0:00:02]} bxc6 {[%emt 0:00:01]} 12. O-O {[%emt 0:00:01]} O-O {[%emt 0:00:03]} 13. Nc3 {[%emt 0:00:05]} Nxc3 {[%emt 0:00:18]} 14. Qxc3 {[%emt 0:00:00]} Be6 {[%emt 0:00:01]} 15. Ne5 {[%emt 0:01:16]} Bd5 {[%emt 0:00:13]} 16. Nxc6 {[%emt 0:00:05]} Bxc6 {[%emt 0:00:18]} 17. Qxc6 {[%emt 0:00:00]} Qxd4 {[%emt 0:00:01]} 18. b3 {[%emt 0:00:18]} a5 {[%emt 0:01:44]} 19. Rac1 {[%emt 0:00:46]} a4 {[%emt 0:01:19]} 20. Rc4 {[%emt 0:01:31]} Qb6 {[%emt 0:00:40]} 21. Qxb6 {[%emt 0:00:19]} cxb6 {[%emt 0:00:02]} 22. bxa4 {[%emt 0:00:37]} Rfd8 {[%emt 0:00:53]} 23. g3 {[%emt 0:00:21]} Rd2 {[%emt 0:01:39]} 24. Rb1 {[%emt 0:00:06]} Rxa2 {[%emt 0:00:17]} 25. Rxb6 {[%emt 0:00:04]} g6 {[%emt 0:00:01]} 26. Rbb4 {[%emt 0:00:07]} h5 {[%emt 0:00:11]} 27. h4 {[%emt 0:00:03]} Kg7 {[%emt 0:00:04]} 28. Kg2 {[%emt 0:00:01]} Ra7 {[%emt 0:00:02]} 29. Rf4 {[%emt 0:00:02]} Ra3 {[%emt 0:00:11]} 30. Rbc4 {[%emt 0:00:01]} Ra2 {[%emt 0:00:03]} 31. Kf3 {[%emt 0:00:02]} Ra3+ {[%emt 0:00:02]} 32. Ke2 {[%emt 0:00:07]} Rb7 {[%emt 0:00:23]} 33. Rb4 {[%emt 0:00:24]} Rc7 {[%emt 0:00:09]} 34. Kd2 {[%emt 0:00:28]} Ra1 {[%emt 0:01:37]} 35. Rbc4 {[%emt 0:00:21]} Rb7 {[%emt 0:00:04]} 36. Kc3 {[%emt 0:00:27]} Ra7 {[%emt 0:00:37]} 37. Kb2 {[%emt 0:00:09]} Re1 {[%emt 0:00:02]} 38. Rc5 {[%emt 0:00:21]} Re2+ {[%emt 0:00:18]} 39. Kb3 {[%emt 0:00:03]} Re1 {[%emt 0:00:04]} 40. Rc2 {[%emt 0:01:53]} Rb7+ {[%emt 0:00:09]} 41. Ka2 {[%emt 0:00:12]} Ra7 {[%emt 0:00:03]} 42. Rb2 {[%emt 0:00:16]} Rd1 {[%emt 0:00:17]} 43. Rc2 {[%emt 0:00:21]} Re1 {[%emt 0:00:03]} 44. Rb2 {[%emt 0:00:01]} Rd1 {[%emt 0:00:01]} 45. Rc2 {[%emt 0:00:16]} Re1 {[%emt 0:00:02]} 1/2-1/2

[Event "Polgar Challenge 2021"]
[Site "Online"]
[Date "2021.04.04"]
[Round "10.6"]
[White "Badelka, Olga"]
[Black "Bjerre, Jonas Buhl"]
[Result "0-1"]
[ECO "E46"]
[WhiteElo "2433"]
[BlackElo "2550"]
[Annotator "ChessBase"]
[PlyCount "116"]
[EventDate "2021.04.08"]
[EventType "tourn"]
[EventCountry "NET"]
[SourceTitle "playchess.com"]
[Source "ChessBase"]
[SourceQuality "1"]
[TimeControl "600+5"]

1. d4 {[%emt 0:00:00]} Nf6 {[%emt 0:00:00]} 2. c4 {[%emt 0:00:00]} e6 {[%emt 0:00:00]} 3. Nc3 {[%emt 0:00:00]} Bb4 {[%emt 0:00:00]} 4. e3 {[%emt 0:00:00]} O-O {[%emt 0:00:03]} 5. Nge2 {[%emt 0:00:03]} Re8 {[%emt 0:00:13]} 6. a3 {[%emt 0:00:03]} Bf8 {[%emt 0:00:01]} 7. d5 {[%emt 0:00:01]} a5 {[%emt 0:00:09]} 8. Ng3 {[%emt 0:00:06]} Na6 {[%emt 0:00:11]} 9. Be2 {[%emt 0:00:05]} Nc5 {[%emt 0:00:05]} 10. e4 {[%emt 0:00:13]} exd5 {[%emt 0:00:23]} 11. exd5 {[%emt 0:00:03]} a4 {[%emt 0:00:15]} 12. Be3 {[%emt 0:01:31]} d6 {[%emt 0:01:17]} 13. O-O {[%emt 0:00:29]} Bd7 {[%emt 0:00:07]} 14. Qc2 {[%emt 0:00:27]} g6 {[%emt 0:01:15]} 15. Rae1 {[%emt 0:00:05]} Bg7 {[%emt 0:00:04]} 16. Bd1 {[%emt 0:01:29]} h5 {[%emt 0:01:21]} 17. Bg5 {[%emt 0:00:06]} Rxe1 {[%emt 0:00:17]} 18. Rxe1 {[%emt 0:00:01]} Qf8 {[%emt 0:00:01]} 19. h3 {[%emt 0:01:37]} Re8 {[%emt 0:00:44]} 20. Re2 {[%emt 0:00:10]} Nh7 {[%emt 0:00:18]} 21. Be3 {[%emt 0:00:05]} h4 {[%emt 0:00:19]} 22. Bxc5 {[%emt 0:00:42]} dxc5 {[%emt 0:00:23]} 23. Nge4 {[%emt 0:00:39]} Bd4 {[%emt 0:00:58]} 24. Qd3 {[%emt 0:00:39]} Qh6 {[%emt 0:01:07]} 25. Nd2 {[%emt 0:00:41]} Qf4 {[%emt 0:00:24]} 26. Rxe8+ {[%emt 0:00:07]} Bxe8 {[%emt 0:00:02]} 27. Nf3 {[%emt 0:00:27]} Bf6 {[%emt 0:00:35]} 28. Bxa4 {[%emt 0:00:22]} Bxc3 {[%emt 0:00:14]} 29. Bxe8 {[%emt 0:00:07]} Bxb2 {[%emt 0:00:08]} 30. Qe2 {[%emt 0:00:46]} Bf6 {[%emt 0:00:29]} 31. a4 {[%emt 0:00:21]} Nf8 {[%emt 0:00:23]} 32. Bb5 {[%emt 0:00:16]} b6 {[%emt 0:00:09]} 33. Bc6 {[%emt 0:00:03]} Kg7 {[%emt 0:00:07]} 34. Bb5 {[%emt 0:00:03]} Bd4 {[%emt 0:00:05]} 35. Bc6 {[%emt 0:00:19]} Nh7 {[%emt 0:00:01]} 36. Nxd4 {[%emt 0:00:18]} cxd4 {[%emt 0:00:10]} 37. c5 {[%emt 0:00:14]} Qc1+ {[%emt 0:00:05]} 38. Kh2 {[%emt 0:00:01]} Qxc5 {[%emt 0:00:02]} 39. Qe5+ {[%emt 0:00:02]} Nf6 {[%emt 0:00:06]} 40. Qxc7 {[%emt 0:00:15]} d3 {[%emt 0:00:14]} 41. d6 {[%emt 0:00:02]} Qe5+ {[%emt 0:00:09]} 42. Kg1 {[%emt 0:00:03]} d2 {[%emt 0:00:21]} 43. Bf3 {[%emt 0:00:01]} Qe1+ {[%emt 0:00:06]} 44. Kh2 {[%emt 0:00:01]} d1=Q {[%emt 0:00:04]} 45. Bxd1 {[%emt 0:00:02]} Qxd1 {[%emt 0:00:02]} 46. Qxb6 {[%emt 0:00:06]} Ne4 {[%emt 0:00:03]} 47. Qb2+ {[%emt 0:00:22]} Kh7 {[%emt 0:00:06]} 48. a5 {[%emt 0:00:19]} Qxd6+ {[%emt 0:00:05]} 49. Kg1 {[%emt 0:00:01]} Qd1+ {[%emt 0:00:04]} 50. Kh2 {[%emt 0:00:01]} Nd2 {[%emt 0:00:12]} 51. g4 {[%emt 0:00:09]} hxg3+ {[%emt 0:00:07]} 52. Kxg3 {[%emt 0:00:02]} Qf3+ {[%emt 0:00:02]} 53. Kh2 {[%emt 0:00:06]} Qxf2+ {[%emt 0:00:02]} 54. Kh1 {[%emt 0:00:01]} Qf1+ {[%emt 0:00:03]} 55. Kh2 {[%emt 0:00:01]} Qe2+ {[%emt 0:00:09]} 56. Kh1 {[%emt 0:00:03]} Qe4+ {[%emt 0:00:02]} 57. Kh2 {[%emt 0:00:06]} Nc4 {[%emt 0:00:11]} 58. Qc3 {[%emt 0:00:24]} Qe5+ {[%emt 0:00:04]} 0-1

[Event "Polgar Challenge 2021"]
[Site "Online"]
[Date "2021.04.04"]
[Round "10.7"]
[White "Lei, Tingjie"]
[Black "Shuvalova, Polina"]
[Result "1/2-1/2"]
[ECO "C54"]
[WhiteElo "2505"]
[BlackElo "2476"]
[Annotator "ChessBase"]
[PlyCount "104"]
[EventDate "2021.04.08"]
[EventType "tourn"]
[EventCountry "NET"]
[SourceTitle "playchess.com"]
[Source "ChessBase"]
[SourceQuality "1"]
[TimeControl "600+5"]

1. e4 {[%emt 0:00:00]} e5 {[%emt 0:00:00]} 2. Nf3 {[%emt 0:00:02]} Nc6 {[%emt 0:00:00]} 3. Bc4 {[%emt 0:00:01]} Bc5 {[%emt 0:00:00]} 4. c3 {[%emt 0:00:03]} Nf6 {[%emt 0:00:02]} 5. d3 {[%emt 0:00:01]} d6 {[%emt 0:00:01]} 6. O-O {[%emt 0:00:05]} O-O {[%emt 0:00:05]} 7. Bd2 {[%emt 0:00:08]} a6 {[%emt 0:00:21]} 8. Bb3 {[%emt 0:00:50]} Re8 {[%emt 0:00:09]} 9. h3 {[%emt 0:00:06]} h6 {[%emt 0:00:02]} 10. Re1 {[%emt 0:00:02]} Be6 {[%emt 0:00:07]} 11. Bxe6 {[%emt 0:00:20]} Rxe6 {[%emt 0:00:07]} 12. Nh4 {[%emt 0:01:11]} d5 {[%emt 0:00:44]} 13. Nf5 {[%emt 0:00:43]} Ne7 {[%emt 0:00:35]} 14. Nxe7+ {[%emt 0:00:43]} Qxe7 {[%emt 0:00:11]} 15. Be3 {[%emt 0:02:16]} Rd8 {[%emt 0:00:14]} 16. Bxc5 {[%emt 0:00:24]} Qxc5 {[%emt 0:00:02]} 17. Nd2 {[%emt 0:00:04]} dxe4 {[%emt 0:01:57]} 18. dxe4 {[%emt 0:02:11]} Red6 {[%emt 0:01:30]} 19. Nb3 {[%emt 0:00:02]} Qc4 {[%emt 0:00:37]} 20. Qc2 {[%emt 0:00:48]} b6 {[%emt 0:00:32]} 21. Re2 {[%emt 0:00:15]} Qa4 {[%emt 0:00:16]} 22. Rae1 {[%emt 0:00:17]} c5 {[%emt 0:00:15]} 23. c4 {[%emt 0:00:22]} Nh7 {[%emt 0:00:26]} 24. Nc1 {[%emt 0:00:39]} Qxc2 {[%emt 0:00:17]} 25. Rxc2 {[%emt 0:00:02]} Ng5 {[%emt 0:00:04]} 26. f3 {[%emt 0:00:15]} Ne6 {[%emt 0:00:30]} 27. Ne2 {[%emt 0:00:03]} Rd1 {[%emt 0:01:12]} 28. Rxd1 {[%emt 0:00:08]} Rxd1+ {[%emt 0:00:02]} 29. Kf2 {[%emt 0:00:01]} g5 {[%emt 0:00:32]} 30. Nc3 {[%emt 0:00:08]} Ra1 {[%emt 0:00:08]} 31. a3 {[%emt 0:00:12]} Nd4 {[%emt 0:00:16]} 32. Rd2 {[%emt 0:00:02]} Rc1 {[%emt 0:00:02]} 33. Na4 {[%emt 0:00:11]} b5 {[%emt 0:00:13]} 34. Nxc5 {[%emt 0:00:01]} Rxc4 {[%emt 0:00:38]} 35. Nd7 {[%emt 0:00:01]} Nc6 {[%emt 0:00:07]} 36. Nf6+ {[%emt 0:00:04]} Kg7 {[%emt 0:00:02]} 37. Ng4 {[%emt 0:00:01]} h5 {[%emt 0:00:19]} 38. Ne3 {[%emt 0:00:03]} Rc1 {[%emt 0:00:09]} 39. Nf5+ {[%emt 0:00:01]} Kf8 {[%emt 0:00:22]} 40. Rd7 {[%emt 0:00:03]} Ke8 {[%emt 0:00:05]} 41. Rc7 {[%emt 0:00:07]} Rc2+ {[%emt 0:00:02]} 42. Kf1 {[%emt 0:00:17]} f6 {[%emt 0:00:03]} 43. Ne3 {[%emt 0:00:09]} Rc1+ {[%emt 0:00:04]} 44. Kf2 {[%emt 0:00:02]} Kd8 {[%emt 0:00:00]} 45. Rf7 {[%emt 0:00:02]} Rb1 {[%emt 0:00:06]} 46. Rxf6 {[%emt 0:00:05]} Rxb2+ {[%emt 0:00:03]} 47. Kf1 {[%emt 0:00:13]} Kd7 {[%emt 0:00:04]} 48. Nd5 {[%emt 0:00:09]} a5 {[%emt 0:00:09]} 49. Nb6+ {[%emt 0:00:01]} Kc7 {[%emt 0:00:01]} 50. Nd5+ {[%emt 0:00:01]} Kd7 {[%emt 0:00:01]} 51. Nb6+ {[%emt 0:00:02]} Kc7 {[%emt 0:00:01]} 52. Nd5+ {[%emt 0:00:01]} Kd7 {[%emt 0:00:13]} 1/2-1/2

[Event "Polgar Challenge 2021"]
[Site "Online"]
[Date "2021.04.04"]
[Round "10.8"]
[White "Yip, Carissa"]
[Black "Yoo, Christopher Woojin"]
[Result "0-1"]
[ECO "B45"]
[WhiteElo "2430"]
[BlackElo "2455"]
[Annotator "ChessBase"]
[PlyCount "78"]
[EventDate "2021.04.08"]
[EventType "tourn"]
[EventCountry "NET"]
[SourceTitle "playchess.com"]
[Source "ChessBase"]
[SourceQuality "1"]
[TimeControl "600+5"]

1. e4 {[%emt 0:00:00]} c5 {[%emt 0:00:00]} 2. Nf3 {[%emt 0:00:00]} e6 {[%emt 0:00:00]} 3. d4 {[%emt 0:00:00]} cxd4 {[%emt 0:00:00]} 4. Nxd4 {[%emt 0:00:00]} Nf6 {[%emt 0:00:00]} 5. Nc3 {[%emt 0:00:02]} Nc6 {[%emt 0:00:00]} 6. Nxc6 {[%emt 0:00:11]} bxc6 {[%emt 0:00:03]} 7. e5 {[%emt 0:00:03]} Nd5 {[%emt 0:00:02]} 8. Ne4 {[%emt 0:00:09]} Qc7 {[%emt 0:00:02]} 9. f4 {[%emt 0:00:02]} Rb8 {[%emt 0:00:02]} 10. Bd3 {[%emt 0:00:35]} Qb6 {[%emt 0:00:26]} 11. c4 {[%emt 0:00:38]} Bb4+ {[%emt 0:02:00]} 12. Ke2 {[%emt 0:00:02]} f5 {[%emt 0:00:03]} 13. exf6 {[%emt 0:01:52]} Nxf6 {[%emt 0:00:03]} 14. Be3 {[%emt 0:00:17]} Qa5 {[%emt 0:01:12]} 15. Nxf6+ {[%emt 0:01:11]} gxf6 {[%emt 0:00:02]} 16. a3 {[%emt 0:00:09]} Be7 {[%emt 0:01:20]} 17. b4 {[%emt 0:00:26]} Qc7 {[%emt 0:00:02]} 18. Kf2 {[%emt 0:00:08]} O-O {[%emt 0:01:56]} 19. Qg4+ {[%emt 0:02:35]} Kh8 {[%emt 0:00:03]} 20. Qh5 {[%emt 0:00:02]} f5 {[%emt 0:00:04]} 21. g4 {[%emt 0:01:01]} d5 {[%emt 0:02:01]} 22. gxf5 {[%emt 0:00:40]} exf5 {[%emt 0:00:06]} 23. Qh6 {[%emt 0:00:13]} Qd8 {[%emt 0:00:32]} 24. Rhg1 {[%emt 0:00:34]} Bf6 {[%emt 0:00:11]} 25. Rad1 {[%emt 0:00:03]} d4 {[%emt 0:00:38]} 26. Bc1 {[%emt 0:00:19]} Be6 {[%emt 0:00:08]} 27. Rg5 {[%emt 0:00:25]} Qd7 {[%emt 0:00:43]} 28. Re1 {[%emt 0:00:22]} Rbe8 {[%emt 0:00:13]} 29. Bd2 {[%emt 0:00:07]} Bxg5 {[%emt 0:00:11]} 30. fxg5 {[%emt 0:00:01]} Bf7 {[%emt 0:00:15]} 31. Bf4 {[%emt 0:00:12]} Bg6 {[%emt 0:00:05]} 32. h4 {[%emt 0:00:08]} Qf7 {[%emt 0:00:04]} 33. Be5+ {[%emt 0:00:06]} Kg8 {[%emt 0:00:02]} 34. Bf6 {[%emt 0:00:10]} Rxe1 {[%emt 0:00:05]} 35. Kxe1 {[%emt 0:00:01]} Re8+ {[%emt 0:00:06]} 36. Kd2 {[%emt 0:00:01]} f4 {[%emt 0:00:05]} 37. Bf1 {[%emt 0:00:14]} f3 {[%emt 0:00:05]} 38. Kd1 {[%emt 0:00:05]} f2 {[%emt 0:00:03]} 39. c5 {[%emt 0:00:06]} Qb3+ {[%emt 0:00:02]} 0-1